[Event "USA Championship 2022"]
[Site "Saint Louis"]
[Date "2022.10.05"]
[Round "1.6"]
[White "Shankland, Sam"]
[Black "Robson, Ray"]
[Result "1/2-1/2"]
[ECO "C65"]
[WhiteElo "2712"]
[BlackElo "2690"]
[Annotator "TA"]
[PlyCount "70"]
[EventDate "2022.09.05"]
[EventType "tourn"]
[EventCountry "USA"]
[SourceTitle "playchess.com"]
[Source "ChessBase"]
[SourceQuality "1"]
[TimeControl "40/5400+30:1800+30"]

{[%evp 9,70,22,21,2,6,4,7,1,4,1,0,0,5,0,0,0,14,15,11,0,0,0,0,0,0,0,0,-18,0,0,14,-14,-7,-7,-7,-14,-9,-14,-14,-14,-14,-14,-14,-37,-37,-37,-37,-37,-19,-29,0,-23,0,-10,0,-31,0,-14,0,-33,0,-16,0]} 1. e4 {[%emt 0:00:11]} e5 {[%emt 0:00:31]} 2. Nf3 {[%emt 0:00:05]} Nc6 {[%emt 0:00:18]} 3. Bb5 {[%emt 0:00:09]} Nf6 {[%emt 0:00:44]} 4. d3 {[%emt 0:00:07]} Bc5 {[%emt 0:00:33]} 5. Bxc6 {[%emt 0:00:10]} dxc6 {[%emt 0:00:20]} 6. Nbd2 {[%emt 0:00:05] C65: Ruy Lopez: Berlin Defence (3...Nf6), unusual lines and 4 0-0 Bc5.} Be6 {[%emt 0:07:06]} 7. O-O {[%emt 0:00:12]} Nd7 {[%emt 0:00:44] 7...Bd6 deserves study.} 8. Nb3 {[%emt 0:00:15]} Bb6 {[%emt 0:00:38]} 9. Ng5 {[%emt 0:00:09]} Bxb3 {[%emt 0:00:44]} 10. axb3 {[%emt 0:00:05]} Qe7 {[%emt 0:00:40]} 11. Nf3 {[%emt 0:00:54][%cal Bg5f3,Bf3d2,Bd2c4][%mdl 32]} f6 {[%emt 0:01:16]} 12. Nd2 {[%emt 0:00:46]} O-O-O {[%emt 0:02:24]} 13. Nc4 {[%emt 0:02:28]} a6 {[%emt 0:02:26]} 14. Kh1 {[%emt 0:02:11] [#]} g5 $146 {[%emt 0:05:43]} ({Predecessor:} 14... Ba7 15. f4 Kb8 16. Bd2 Bd4 17. Bc3 Nb6 18. fxe5 fxe5 19. Nd2 Bxc3 20. bxc3 g6 {½-½ (46) Robson,R (2670)-Batchuluun,T (2571) Ulaanbaatar 2018}) 15. Be3 {[%emt 0:04:33]} Kb8 {[%emt 0:03:44]} 16. Qd2 {[%emt 0:10:33]} h5 {[%emt 0:04:05][%cal Bh7h5,Bh5h4,Bh4h3][%mdl 32]} 17. b4 {[%emt 0:04:20]} Rhg8 {[%emt 0:19:09]} 18. Rad1 {[%emt 0:14:19]} h4 {[%emt 0:05:13]} 19. f3 {[%emt 0:04:30]} h3 {[%emt 0:04:29]} 20. g4 {[%emt 0:00:55]} ({But not} 20. gxh3 Rh8 $15) 20... Bxe3 {[%emt 0:04:17]} 21. Nxe3 {[%emt 0:00:05]} Nf8 {[%emt 0:01:02][%cal Bd7f8,Bf8e6,Be6f4][%mdl 32]} 22. Nf5 {[%emt 0:00:50]} Qd7 {[%emt 0:03:36]} 23. c3 {[%emt 0:10:44]} Ne6 {[%emt 0:02:33]} 24. d4 {[%emt 0:02:11]} Nf4 {[%emt 0:06:17]} 25. Qc2 {[%emt 0:03:01]} Qe6 {[%emt 0:00:44]} 26. b3 {[%emt 0:01:40]} Rd7 {[%emt 0:02:37]} 27. Rd2 {[%emt 0:00:45]} Rgd8 {[%emt 0:02:33]} 28. Rfd1 {[%emt 0:00:06]} Ng6 {[%emt 0:07:09]} 29. Kg1 {[%emt 0:02:27][%cal Bh1g1,Bg1f1,Bf1f2][%mdl 32]} Nf4 {[%emt 0:02:29]} 30. Kf1 {[%emt 0:04:25]} Ng6 {[%emt 0:00:37]} 31. Kf2 {[%emt 0:05:00]} Ne7 {[%emt 0:01:29]} 32. Ng3 {[%emt 0:04:13]} Ng6 {[%emt 0:00:27]} 33. Nf5 {[%emt 0:01:10]} Ne7 {[%emt 0:00:02]} 34. Ng3 {[%emt 0:00:44]} Ng6 {[%emt 0:00:01]} 35. Nf5 {[%emt 0:02:26]} Ne7 {[%emt 0:00:21] Weighted Error Value: White=0.08 (flawless) /Black=0.08 (flawless)} 1/2-1/2

[Event "USA Championship 2022"]
[Site "Saint Louis"]
[Date "2022.10.05"]
[Round "1.7"]
[White "Caruana, Fabiano"]
[Black "Dominguez Perez, Leinier"]
[Result "1/2-1/2"]
[ECO "C67"]
[WhiteElo "2763"]
[BlackElo "2747"]
[Annotator "TA"]
[PlyCount "94"]
[EventDate "2022.09.05"]
[EventType "tourn"]
[EventCountry "USA"]
[SourceTitle "playchess.com"]
[Source "ChessBase"]
[SourceQuality "1"]
[TimeControl "40/5400+30:1800+30"]

{[%evp 12,94,-9,-4,0,0,7,12,0,2,0,0,0,0,0,-23,-33,-30,-25,-65,-52,-97,-40,-47,-44,-42,-35,-57,-45,-72,-53,-102,-102,-98,-96,-104,-67,-88,-86,-79,-68,-64,-58,-50,0,-74,-70,-66,-74,-62,-78,-98,-68,-84,-79,-79,-72,-72,-79,-73,-44,-88,-84,-84,-92,-81,-89,-94,-5,-5,0,0,0,0,0,0,8,0,8,0,8,0,8,0,11]} 1. e4 {[%emt 0:00:52]} e5 {[%emt 0:00:08]} 2. Nf3 {[%emt 0:00:07]} Nc6 {[%emt 0:01:59]} 3. Bb5 {[%emt 0:02:02]} Nf6 {[%emt 0:01:02]} 4. O-O {[%emt 0:01:00]} Nxe4 {[%emt 0:00:00]} 5. d4 {[%emt 0:00:52]} Nd6 {[%emt 0:00:09]} 6. dxe5 {[%emt 0:00:14]} Nxb5 {[%emt 0:00:08]} 7. a4 {[%emt 0:00:18] [#]} Nbd4 {C67: Ruy Lopez: Berlin Defence: 4 0-0 Nxe4.} 8. Nxd4 {[%emt 0:01:04]} d5 $1 {[%emt 0:00:29][%mdl 4] is currently scoring better than 8...Nxd4.} 9. Nxc6 {[%emt 0:00:15]} bxc6 {[%emt 0:00:05]} 10. Qd3 {[%emt 0:05:54]} Qd7 {[%emt 0:05:47]} 11. Nd2 {[%emt 0:12:01]} a5 {[%emt 0:14:01] [#]} 12. Qe3 $146 {[%emt 0:09:09]} ({Predecessor:} 12. Re1 Be7 13. Nf3 Qg4 14. Nd4 Ba6 15. Qd2 Bb7 16. h3 Qh5 17. Qf4 O-O 18. Be3 {0-1 (37) Tregubov,P (2588)-Ganguly,S (2644) Germany 2021}) 12... c5 {[%emt 0:12:01]} 13. Nb3 {[%emt 0:18:09]} Qc6 {[%emt 0:02:41]} 14. Qc3 {[%emt 0:00:00]} Qb6 15. Bd2 {[%emt 0:35:16]} Be6 {[%emt 0:07:04]} 16. Kh1 {[%emt 0:09:15]} d4 {[%emt 0:03:34]} (16... Be7 $17 17. Nxa5 O-O) 17. Qf3 $15 {[%emt 0:00:00]} Ra6 {[%emt 0:11:49]} 18. Nc1 {[%emt 0:00:00]} Be7 {[%emt 0:10:29]} 19. b3 {[%emt 0:00:00]} O-O {[%emt 0:01:12]} 20. Nd3 {[%emt 0:00:00]} Qc6 {[%emt 0:04:48]} 21. Qe2 {[%emt 0:00:00]} (21. Qxc6 $15 Rxc6 22. Ne1) 21... c4 $17 {[%emt 0:05:53]} 22. bxc4 {[%emt 0:00:00]} Qxc4 {[%emt 0:01:07]} 23. Rfc1 {[%emt 0:00:00]} Bf5 {[%emt 0:04:46]} 24. Qf3 {[%emt 0:00:00]} Bg6 {[%emt 0:01:40]} 25. h3 {[%emt 0:03:38]} Re8 {[%emt 0:02:20]} (25... f6 $5 {[%cal Rf6e5]} 26. Qg3 c5 $15) 26. Nb2 {[%emt 0:06:05]} Qe6 {[%emt 0:00:38]} 27. Nd3 {[%emt 0:00:00]} Qc4 {[%emt 0:03:57]} 28. Nb2 $1 {[%emt 0:00:00]} Qc6 {[%emt 0:00:46]} 29. Qxc6 {[%emt 0:00:00]} Rxc6 {[%emt 0:00:00]} 30. Nd3 {[%emt 0:03:58] Prevents Bb4.} Ra8 {[%emt 0:03:51]} 31. Ra2 {[%emt 0:00:00]} Rc4 {[%emt 0:01:11]} 32. Rb1 {[%emt 0:00:00]} Bf5 {[%emt 0:01:55]} 33. Rb5 {[%emt 0:00:00]} Bd7 {[%emt 0:00:00]} 34. Rxa5 {[%emt 0:00:00]} Rxa5 {[%emt 0:00:00]} 35. Bxa5 {[%emt 0:00:00][%cal Oe5e6]} h5 {[%emt 0:01:28]} ({But not} 35... Bxa4 36. Bb4 $1 c5 37. Bxc5 $14 (37. Rxa4 cxb4 38. Ra8+ Bf8 $14)) 36. e6 {[%emt 0:00:00]} fxe6 {[%emt 0:00:44]} 37. Ne5 {[%emt 0:00:00][%csl LRc4,LRd7]} Rxa4 {[%emt 0:00:07]} 38. Rxa4 {[%emt 0:00:00]} Bxa4 {[%emt 0:00:03][%mdl 4096] Endgame KBB-KBN} 39. c3 {[%emt 0:00:00] [#]} c5 {[%emt 0:00:57]} ({Better is} 39... dxc3 $1 $17 {White must now prevent ...c2.} 40. Bxc3 g5) 40. cxd4 $1 $11 {[%emt 0:00:56] The position is equal.} Bf6 {[%emt 0:01:43]} 41. Bc3 {[%emt 0:00:23]} cxd4 {[%emt 0:00:00]} 42. Bxd4 {[%emt 0:00:04]} Bxe5 {[%emt 0:00:00]} 43. Bxe5 {[%emt 0:00:09] KB-KB} g6 {[%emt 0:00:00]} 44. Kg1 {[%emt 0:00:00]} Kf7 {[%emt 0:00:00]} 45. Kh1 {[%emt 0:00:03]} Kg8 {[%emt 0:00:00]} 46. Kg1 {[%emt 0:00:03]} Kf7 {[%emt 0:00:00]} 47. Kh1 {[%emt 0:00:06]} Kg8 {[%emt 0:00:03] Weighted Error Value: White=0.08 (flawless) /Black=0.11 (very precise)} 1/2-1/2

[Event "USA Championship 2022"]
[Site "Saint Louis"]
[Date "2022.10.06"]
[Round "2.1"]
[White "Niemann, Hans Moke"]
[Black "Xiong, Jeffery"]
[Result "1/2-1/2"]
[ECO "C11"]
[WhiteElo "2699"]
[BlackElo "2690"]
[Annotator "TA"]
[PlyCount "85"]
[EventDate "2022.09.05"]
[EventType "tourn"]
[EventCountry "USA"]
[SourceTitle "playchess.com"]
[Source "ChessBase"]
[SourceQuality "1"]
[TimeControl "40/5400+30:1800+30"]

{[%evp 17,85,0,0,0,0,0,0,14,25,25,24,18,18,18,22,25,55,35,53,57,81,87,71,69,60,60,137,122,127,134,144,136,122,51,57,3,4,0,0,0,0,0,0,0,0,0,0,0,0,0,0,0,0,0,0,0,0,0,0,0,0,-25,-26,-19,0,-26,0,-18,0,-18]} 1. e4 {[%emt 0:05:26]} e6 {[%emt 0:00:18]} 2. d4 {[%emt 0:01:54]} d5 {[%emt 0:00:08]} 3. Nc3 {[%emt 0:01:16]} Nf6 {[%emt 0:00:16]} 4. e5 {[%emt 0:01:41]} Nfd7 {[%emt 0:00:09]} 5. f4 {[%emt 0:00:17]} c5 {[%emt 0:00:08]} 6. Nf3 {[%emt 0:00:07]} Nc6 {[%emt 0:00:15]} 7. Be3 {[%emt 0:00:38]} cxd4 {[%emt 0:00:29]} 8. Nxd4 {[%emt 0:00:54]} Qb6 {[%emt 0:00:15] now supersedes 8...Bc5.} 9. a3 {[%emt 0:09:59]} Bc5 {[%emt 0:07:15][%cal Rc6d4]} (9... Qxb2 $2 10. Na4 Qxa1 11. Qxa1 $18) 10. Ncb5 {[%emt 0:00:14] C11: French: Classical System: 4 e5 and 4 Bg5 dxe4.} Nxd4 {[%emt 0:22:52]} 11. Bxd4 {[%emt 0:00:39][%cal Ob5d6] [#] Hoping for Nd6+!} O-O {[%emt 0:00:41] Strongly threatening ...a6.} 12. Bxc5 {[%emt 0:29:16]} Nxc5 {[%emt 0:07:24]} 13. Qd4 {[%emt 0:02:47]} f6 {[%emt 0:11:32]} 14. Be2 {[%emt 0:06:38]} fxe5 {[%emt 0:11:40]} 15. fxe5 {[%emt 0:00:41]} Bd7 {[%emt 0:03:28]} 16. Nd6 {[%emt 0:01:01] [#]} Ba4 $146 {[%emt 0:04:02]} ({Predecessor:} 16... Na4 17. O-O-O Rf4 18. Qxb6 axb6 19. Rhf1 Raf8 20. Rxf4 Rxf4 21. Rf1 Rxf1+ 22. Bxf1 Kf8 23. Nxb7 {1-0 (34) Macieja,B (2542)-Gradalski,P (2309) Suwalki 1999}) 17. b3 {[%emt 0:05:25][%cal Bb2b3,Bb3b4][%mdl 32]} Be8 {[%emt 0:00:07]} 18. b4 {[%emt 0:03:24]} Ne4 {[%emt 0:08:23]} 19. Qxb6 {[%emt 0:01:20]} axb6 {[%emt 0:00:02]} 20. Nxe4 {[%emt 0:00:11]} dxe4 {[%emt 0:00:02]} 21. Bc4 {[%emt 0:01:07]} Kh8 {[%emt 0:04:58]} (21... Rf4 $14) 22. Bxe6 {[%emt 0:03:51]} Ba4 {[%emt 0:03:47]} 23. O-O-O {[%emt 0:07:57]} e3 {[%emt 0:00:03] [#]} 24. Rhf1 $1 {[%emt 0:05:26]} g6 {[%emt 0:07:48]} 25. Bg4 {[%emt 0:04:15]} (25. Rf6 $16) 25... Rfe8 $1 $14 {[%emt 0:02:47]} 26. Rd4 {[%emt 0:04:25]} ({White should try} 26. Rfe1 $14) 26... Rxe5 $11 {[%emt 0:00:24]} 27. Be2 {[%emt 0:01:14]} Kg7 {[%emt 0:02:00]} 28. g3 {[%emt 0:00:46]} Bc6 {[%emt 0:02:05]} 29. Kb2 {[%emt 0:00:08]} b5 {[%emt 0:00:03]} 30. Rd3 {[%emt 0:00:49]} Rae8 {[%emt 0:00:18]} 31. Rc3 {[%emt 0:01:10]} Rd8 {[%emt 0:00:17]} 32. Rd3 {[%emt 0:00:26]} Rde8 {[%emt 0:00:03]} 33. Rc3 {[%emt 0:00:06]} h5 {[%emt 0:01:34]} 34. Rd3 {[%emt 0:00:15]} Rc8 {[%emt 0:00:46]} 35. Rc3 {[%emt 0:01:27]} Rh8 {[%emt 0:00:15]} 36. h4 {[%emt 0:00:42]} Rc8 {[%emt 0:00:38]} 37. Rd3 {[%emt 0:00:10]} Rce8 {[%emt 0:00:40]} 38. Rd6 {[%emt 0:00:10]} R8e7 {[%emt 0:00:36]} 39. Rd4 {[%emt 0:00:40]} Be4 {[%emt 0:00:49]} 40. Rfd1 {[%emt 0:00:54]} Bc6 {[%emt 0:00:03]} 41. Rf1 {[%emt 0:07:09]} Be4 {[%emt 0:04:40]} 42. Re1 {[%emt 0:03:45]} Bc6 {[%emt 0:12:31]} 43. Rf1 {[%emt 0:01:39] Weighted Error Value: White=0.06 (flawless) /Black=0.07 (flawless)} 1/2-1/2

[Event "USA Championship 2022"]
[Site "Saint Louis"]
[Date "2022.10.06"]
[Round "2.2"]
[White "Swiercz, Dariusz"]
[Black "Shankland, Sam"]
[Result "1/2-1/2"]
[ECO "D87"]
[WhiteElo "2652"]
[BlackElo "2712"]
[Annotator "TA"]
[PlyCount "92"]
[EventDate "2022.09.05"]
[EventType "tourn"]
[EventCountry "USA"]
[SourceTitle "playchess.com"]
[Source "ChessBase"]
[SourceQuality "1"]
[TimeControl "40/5400+30:1800+30"]

{[%evp 19,92,7,18,10,20,10,13,14,12,26,11,25,17,0,0,5,27,15,30,0,0,0,0,0,0,0,0,0,0,0,0,0,0,0,32,0,0,0,0,0,0,-4,-4,-4,-6,0,-7,-7,-7,-7,-6,-7,-7,-9,0,0,0,0,0,0,0,0,0,0,0,0,0,0,0,0,0,0,0,0,0]} 1. d4 {[%emt 0:00:06] Krasenkow,Michal} Nf6 {[%emt 0:00:14]} 2. c4 {[%emt 0:00:08]} g6 {[%emt 0:00:05]} 3. Nc3 {[%emt 0:00:05]} d5 {[%emt 0:00:05]} 4. cxd5 {[%emt 0:00:03]} Nxd5 {[%emt 0:00:04]} 5. e4 {[%emt 0:00:04]} Nxc3 {[%emt 0:00:05]} 6. bxc3 {[%emt 0:00:05]} Bg7 {[%emt 0:00:05]} 7. Bc4 {[%emt 0:00:05]} O-O {[%emt 0:00:15]} 8. Ne2 {[%emt 0:00:03]} c5 {[%emt 0:00:07]} 9. O-O {[%emt 0:00:10]} Nc6 {[%emt 0:00:05]} 10. Be3 {[%emt 0:00:05]} e6 {[%emt 0:00:05] 10...b6 is a critical line.} 11. dxc5 {[%emt 0:00:34] D87: Exchange Grünfeld: Classical Line: Variations without ...cxd4.} Ne5 {[%emt 0:00:05] [#]} 12. Qxd8 $146 {[%emt 0:00:24]} ({Predecessor:} 12. Bb3 Bd7 13. Nd4 Qh4 14. f3 Rfd8 15. Qd2 h6 16. Rfd1 Kh7 17. h3 a6 18. f4 Nc6 {½-½ (86) Naiditsch,A (2676)-McShane,L (2614) Germany 2006 CBM 116 [Krasenkow,Michal]}) 12... Rxd8 {[%emt 0:00:03]} 13. Rfd1 {[%emt 0:00:08]} Bd7 {[%emt 0:00:46]} 14. Bb3 {[%emt 0:00:16]} Bc6 {[%emt 0:02:14]} 15. f3 {[%emt 0:09:56]} Rdc8 {[%emt 0:00:24]} 16. Nf4 {[%emt 0:41:18]} a5 $1 {[%emt 0:02:09]} 17. a4 {[%emt 0:03:52]} Be8 {[%emt 0:09:31]} 18. Bd4 {[%emt 0:07:11]} Nc6 {[%emt 0:10:59][%cal Be5c6,Bc6b8,Bb8d7,Bd7c5,Bc5d3][%mdl 32] Threatens to win with ...e5.} 19. Bxg7 {[%emt 0:19:11]} (19. Nxe6 {is interesting.} fxe6 20. Bxe6+ Kh8 21. Bxc8 Rxc8 22. Bxg7+ Kxg7 23. Rab1) 19... Kxg7 {[%emt 0:00:01]} 20. Nd3 {[%emt 0:00:05] Inhibits Ne5.} Nb8 {[%emt 0:09:37]} 21. Bc4 {[%emt 0:00:08]} Nd7 {[%emt 0:01:08]} 22. Bb5 {[%emt 0:00:14]} Nxc5 {[%emt 0:00:39]} 23. Bxe8 {[%emt 0:01:11] [#] Hoping for Bb5.} Nxd3 {[%emt 0:00:04]} 24. Rxd3 {[%emt 0:00:35]} Rxe8 $11 {[%emt 0:00:05][%mdl 4096] Endgame KRR-KRR} 25. Rd7 {[%emt 0:00:27]} Red8 {[%emt 0:00:42]} 26. Rxb7 {[%emt 0:02:38]} Rac8 {[%emt 0:00:54]} 27. Rb5 {[%emt 0:05:59]} Rxc3 {[%emt 0:01:11] The position is equal.} 28. Rxa5 {[%emt 0:00:05]} Rd2 {[%emt 0:00:25] Inhibits Ra2.} 29. Rg5 {[%emt 0:01:37]} Rcc2 {[%emt 0:00:50]} 30. a5 {[%emt 0:01:01]} h6 {[%emt 0:01:11]} 31. Rg3 {[%emt 0:00:04]} Ra2 {[%emt 0:00:17]} 32. Rxa2 {[%emt 0:00:04]} Rxa2 {[%emt 0:00:04] KR-KR} 33. f4 {[%emt 0:01:03]} Rxa5 {[%emt 0:00:06]} 34. Re3 {[%emt 0:00:03]} Ra2 {[%emt 0:00:54]} 35. h4 {[%emt 0:01:20]} Kf6 {[%emt 0:00:36]} 36. g3 {[%emt 0:04:54]} h5 {[%emt 0:03:08]} 37. Kf1 {[%emt 0:01:21]} e5 {[%emt 0:00:07]} 38. Re2 {[%emt 0:00:34]} Ra3 {[%emt 0:00:31]} 39. Kg2 {[%emt 0:00:05]} Ke6 {[%emt 0:00:29]} 40. Rb2 {[%emt 0:00:59]} exf4 {[%emt 0:01:47]} 41. gxf4 {[%emt 0:30:12]} Ra4 {[%emt 0:30:26]} 42. Kf3 {[%emt 0:00:07]} Ra3+ {[%emt 0:00:03]} 43. Kg2 {[%emt 0:00:05]} Ra4 {[%emt 0:00:08]} 44. Kf3 {[%emt 0:00:04]} Ra3+ {[%emt 0:00:03]} 45. Kg2 {[%emt 0:00:13]} Ra4 {[%emt 0:00:03]} 46. Kf3 {[%emt 0:00:04]} Ra3+ {[%emt 0:00:11] An interesting draw.  Weighted Error Value: White=0.03 (flawless) /Black=0.02 (flawless)} 1/2-1/2

[Event "USA Championship 2022"]
[Site "Saint Louis"]
[Date "2022.10.06"]
[Round "2.3"]
[White "Robson, Ray"]
[Black "Caruana, Fabiano"]
[Result "1/2-1/2"]
[ECO "E04"]
[WhiteElo "2690"]
[BlackElo "2763"]
[Annotator "TA"]
[PlyCount "93"]
[EventDate "2022.09.05"]
[EventType "tourn"]
[EventCountry "USA"]
[SourceTitle "playchess.com"]
[Source "ChessBase"]
[SourceQuality "1"]
[TimeControl "40/5400+30:1800+30"]

{[%evp 10,93,0,0,0,-9,-4,-56,-37,-44,0,0,0,-31,-19,-16,-35,-19,-9,-16,-15,-8,-14,-10,-6,-6,2,0,5,3,4,8,24,0,0,0,0,0,2,0,0,0,14,0,0,0,0,0,0,0,0,-24,-16,-20,-16,-26,-17,-17,0,-33,-33,-29,-12,-31,-9,-45,-39,-57,-55,-64,-54,-60,-8,-14,0,-15,-8,-8,0,0,0,-8,0,0,0,-9]} 1. d4 {[%emt 0:06:42]} Nf6 {[%emt 0:00:06]} 2. c4 {[%emt 0:00:08]} e6 {[%emt 0:00:04]} 3. Nf3 {[%emt 0:00:23]} d5 {[%emt 0:00:04]} 4. g3 {[%emt 0:00:26]} Bb4+ {[%emt 0:00:06]} 5. Nbd2 {[%emt 0:01:01]} dxc4 {[%emt 0:02:16]} 6. Bg2 {[%emt 0:00:56]} b5 {[%emt 0:00:16] Against Qa4. E04: Open Catalan: 5 Nf3.} 7. a3 {[%emt 0:00:11]} Be7 {[%emt 0:00:35]} 8. Ne5 {[%emt 0:00:17]} (8. b3 $11) 8... Nd5 $1 $15 {[%emt 0:00:44] Black is slightly better.} 9. O-O {[%emt 0:00:39]} O-O {[%emt 0:04:31]} 10. b3 {[%emt 0:11:05]} Bb7 {[%emt 0:09:45]} 11. bxc4 {[%emt 0:12:30]} (11. Qc2 $5 {[%cal Rb3c4]}) 11... Nc3 {[%emt 0:08:44][%csl LRd1,LRd4]} 12. Qe1 {[%emt 0:00:39]} Bxg2 {[%emt 0:00:07]} 13. Kxg2 {[%emt 0:00:06]} bxc4 {[%emt 0:00:42] [#]} (13... Qxd4 $2 14. Ndf3 Qe4 15. Qxc3 $18) 14. Ndf3 $146 {[%emt 0:08:31]} ({Predecessor:} 14. Ndxc4 Qxd4 15. Be3 Qd5+ 16. f3 Na4 17. Qb1 Nb6 18. Qc2 Nxc4 19. Nxc4 Nd7 20. Rfd1 {0-1 (57) Mikhalevski,V (2562)-Kozak,A (2526) Warsaw 2021}) 14... Ne4 {[%emt 0:09:26]} 15. Nxc4 {[%emt 0:04:19]} Qd5 {[%emt 0:00:42]} 16. Ne3 {[%emt 0:06:22]} Qb7 {[%emt 0:00:37]} 17. Bd2 {[%emt 0:07:08]} Nd7 {[%emt 0:06:17]} 18. Qb1 {[%emt 0:07:18]} Rfb8 {[%emt 0:04:54][%cal Bf8b8,Bb8b7,Bb7b5][%mdl 32]} 19. Qxb7 {[%emt 0:05:20]} Rxb7 {[%emt 0:00:04]} 20. d5 {[%emt 0:01:15]} Ndc5 {[%emt 0:05:44]} 21. dxe6 {[%emt 0:02:14]} Nxe6 {[%emt 0:00:36]} 22. Nc4 {[%emt 0:02:02]} Nxd2 {[%emt 0:07:44]} 23. Nfxd2 {[%emt 0:00:46]} Rd8 {[%emt 0:01:19]} 24. e3 {[%emt 0:06:51]} Rb5 {[%emt 0:02:40]} 25. Rfc1 {[%emt 0:00:49]} f5 {[%emt 0:04:26]} 26. h4 {[%emt 0:00:47]} Bf6 {[%emt 0:02:00]} 27. Rab1 {[%emt 0:00:57]} a6 {[%emt 0:00:22]} 28. a4 {[%emt 0:01:39]} Rxb1 {[%emt 0:04:24]} 29. Rxb1 {[%emt 0:00:30]} Nc5 {[%emt 0:00:09] Inhibits Rb7.} 30. a5 {[%emt 0:03:05]} Kf7 {[%emt 0:01:17]} 31. Kf3 {[%emt 0:02:56]} Ke6 {[%emt 0:01:18]} 32. h5 {[%emt 0:02:30]} Bc3 {[%emt 0:06:23]} 33. Ke2 {[%emt 0:01:06]} Na4 {[%emt 0:00:10] [#] ...Bxd2 is the strong threat.} 34. Nf3 {[%emt 0:02:31]} Bf6 {[%emt 0:00:44] Against Ng5+. Strongly threatening ...Nc3+.} 35. Ke1 {[%emt 0:03:22]} Rd5 {[%emt 0:02:47]} 36. Rb8 {[%emt 0:00:34]} Rc5 {[%emt 0:07:43]} 37. Ncd2 {[%emt 0:00:30]} Rxa5 {[%emt 0:05:22]} 38. Nb3 {[%emt 0:00:06]} Rd5 {[%emt 0:00:04]} 39. Ra8 {[%emt 0:00:28]} a5 $1 {[%emt 0:03:40]} 40. Nfd4+ {[%emt 0:00:39]} Bxd4 {[%emt 0:00:46]} (40... Kd7 $15) 41. Nxd4+ {[%emt 0:03:42][%mdl 4096] Endgame KRN-KRN. The position is equal.} Ke7 {[%emt 0:08:23]} 42. Rc8 {[%emt 0:13:12]} Rc5 {[%emt 0:03:18]} 43. Nb3 {[%emt 0:06:21]} Rb5 {[%emt 0:07:22]} 44. Nd4 {[%emt 0:00:53]} Rc5 {[%emt 0:00:26]} 45. Nb3 {[%emt 0:00:01]} Rb5 {[%emt 0:00:34]} 46. Nd4 {[%emt 0:00:02]} Rc5 {[%emt 0:00:04]} 47. Nb3 {[%emt 0:01:07] Weighted Error Value: White=0.08 (flawless) /Black=0.07 (flawless)} 1/2-1/2